[Event "Early-Titled-Tuesday-Blitz-February-06-2024"]
[Site "Chess.com"]
[Date "2024.02.06"]
[Round "7"]
[White "ljuks68"]
[Black "Ducke13"]
[Result "1-0"]
[WhiteElo "2417"]
[BlackElo "2287"]
[TimeControl "180+1"]
[EndTime "9:17:16 PST"]
[Termination "ljuks68 won on time"]

1. e4 {[%clk 0:02:53.6]} 1... c5 {[%clk 0:02:59.6]} 2. Nf3 {[%clk 0:02:53.4]}
2... d6 {[%clk 0:03:00.1]} 3. d4 {[%clk 0:02:53.6]} 3... cxd4 {[%clk 0:03:01]}
4. Nxd4 {[%clk 0:02:54.1]} 4... Nf6 {[%clk 0:03:01.2]} 5. Nc3 {[%clk 0:02:54.7]}
5... a6 {[%clk 0:03:01.8]} 6. Bg5 {[%clk 0:02:54.6]} 6... Nbd7 {[%clk
0:02:58.8]} 7. f4 {[%clk 0:02:54.4]} 7... Qa5 {[%clk 0:02:47.7]} 8. Qd2 {[%clk
0:02:48.2]} 8... e6 {[%clk 0:02:41.9]} 9. O-O-O {[%clk 0:02:44.7]} 9... h6
{[%clk 0:02:23.3]} 10. Bxf6 {[%clk 0:02:33.9]} 10... Nxf6 {[%clk 0:02:24.2]} 11.
Be2 {[%clk 0:02:23.1]} 11... Bd7 {[%clk 0:02:17.8]} 12. Bf3 {[%clk 0:02:22.7]}
12... Rc8 {[%clk 0:02:14.1]} 13. Rhe1 {[%clk 0:02:21.4]} 13... Be7 {[%clk
0:02:07.2]} 14. Kb1 {[%clk 0:02:17.1]} 14... b5 {[%clk 0:01:56.1]} 15. e5 {[%clk
0:02:05.6]} 15... dxe5 {[%clk 0:01:40.6]} 16. fxe5 {[%clk 0:01:52.3]} 16... b4
{[%clk 0:01:35.6]} 17. Ne4 {[%clk 0:01:47]} 17... Nxe4 {[%clk 0:01:33.1]} 18.
Rxe4 {[%clk 0:01:39.5]} 18... Bg5 {[%clk 0:01:06.1]} 19. Qd3 {[%clk 0:01:32.8]}
19... Rc7 {[%clk 0:00:38.9]} 20. Nb3 {[%clk 0:01:15.3]} 20... Qb6 {[%clk
0:00:36.5]} 21. Rd4 {[%clk 0:01:10.3]} 21... Qa7 {[%clk 0:00:08.9]} 22. Rxd7
{[%clk 0:01:10]} 22... O-O {[%clk 0:00:02.8]} 23. Rxc7 {[%clk 0:01:06.3]} 23...
Qxc7 {[%clk 0:00:03.7]} 24. Qd6 {[%clk 0:00:52.3]} 24... Qc4 {[%clk 0:00:03]}
25. Qd4 {[%clk 0:00:41.6]} 25... Qb5 {[%clk 0:00:02.5]} 26. Qc5 {[%clk
0:00:40.6]} 26... Qb8 {[%clk 0:00:01.7]} 27. Rd4 {[%clk 0:00:32.9]} 27... Rc8
{[%clk 0:00:02]} 28. Qa5 {[%clk 0:00:27]} 1-0

[Event "Early-Titled-Tuesday-Blitz-February-06-2024"]
[Site "Chess.com"]
[Date "2024.02.06"]
[Round "7"]
[White "JeFumeDesClopes"]
[Black "ccccvhhhj"]
[Result "1-0"]
[WhiteElo "2609"]
[BlackElo "2440"]
[TimeControl "180+1"]
[EndTime "9:17:21 PST"]
[Termination "JeFumeDesClopes won on time"]

1. Nf3 {[%clk 0:02:54.9]} 1... Nc6 {[%clk 0:02:58.9]} 2. d4 {[%clk 0:02:42.4]}
2... d5 {[%clk 0:02:58.7]} 3. Bf4 {[%clk 0:02:40.4]} 3... Bf5 {[%clk 0:02:57.9]}
4. e3 {[%clk 0:02:40.9]} 4... Nb4 {[%clk 0:02:55.5]} 5. Na3 {[%clk 0:02:41.1]}
5... e6 {[%clk 0:02:55.1]} 6. c3 {[%clk 0:02:40]} 6... Nc6 {[%clk 0:02:48.3]} 7.
Qa4 {[%clk 0:02:40]} 7... Bd6 {[%clk 0:02:46.1]} 8. Bb5 {[%clk 0:02:37.9]} 8...
Ne7 {[%clk 0:02:45.7]} 9. Ne5 {[%clk 0:02:38.3]} 9... O-O {[%clk 0:02:42.3]} 10.
O-O {[%clk 0:02:29.5]} 10... Nb8 {[%clk 0:01:55.4]} 11. Be2 {[%clk 0:02:17.7]}
11... c6 {[%clk 0:01:52.6]} 12. Qb3 {[%clk 0:02:05.1]} 12... Qc7 {[%clk
0:01:45]} 13. c4 {[%clk 0:02:04.2]} 13... b6 {[%clk 0:01:40.5]} 14. cxd5 {[%clk
0:02:00.6]} 14... exd5 {[%clk 0:01:38.5]} 15. Rac1 {[%clk 0:01:56]} 15... Qd8
{[%clk 0:01:17.1]} 16. Bg3 {[%clk 0:01:51.7]} 16... f6 {[%clk 0:01:04]} 17. Nd3
{[%clk 0:01:26.1]} 17... Bxg3 {[%clk 0:01:01.9]} 18. hxg3 {[%clk 0:01:27]} 18...
Nd7 {[%clk 0:00:56.5]} 19. Nc2 {[%clk 0:01:23.9]} 19... Kh8 {[%clk 0:00:38.3]}
20. Ncb4 {[%clk 0:01:17.3]} 20... Rc8 {[%clk 0:00:39]} 21. Nf4 {[%clk
0:01:17.6]} 21... Nb8 {[%clk 0:00:33.1]} 22. a4 {[%clk 0:01:03.5]} 22... Qd7
{[%clk 0:00:32.6]} 23. Na6 {[%clk 0:01:01.3]} 23... Nxa6 {[%clk 0:00:26.9]} 24.
Bxa6 {[%clk 0:01:02.2]} 24... Rb8 {[%clk 0:00:20.4]} 25. Rc3 {[%clk 0:01:01]}
25... g5 {[%clk 0:00:18.5]} 26. Nd3 {[%clk 0:00:59.6]} 26... h5 {[%clk 0:00:19]}
27. Rfc1 {[%clk 0:00:54.1]} 27... h4 {[%clk 0:00:19.1]} 28. gxh4 {[%clk
0:00:53.9]} 28... gxh4 {[%clk 0:00:20]} 29. Qd1 {[%clk 0:00:52.8]} 29... Bg4
{[%clk 0:00:12.1]} 30. f3 {[%clk 0:00:49.8]} 30... Bf5 {[%clk 0:00:09.5]} 31.
Kf2 {[%clk 0:00:49.4]} 31... Rg8 {[%clk 0:00:07.8]} 32. Nf4 {[%clk 0:00:45.7]}
32... Ng6 {[%clk 0:00:06.2]} 33. Qh1 {[%clk 0:00:40.6]} 33... Nxf4 {[%clk
0:00:01.7]} 34. Qxh4+ {[%clk 0:00:40.8]} 34... Kg7 {[%clk 0:00:02.6]} 35. Qxf4
{[%clk 0:00:40.4]} 1-0

[Event "Early-Titled-Tuesday-Blitz-February-06-2024"]
[Site "Chess.com"]
[Date "2024.02.06"]
[Round "7"]
[White "VomDingJetztHer"]
[Black "BeautiFullMindChess"]
[Result "1-0"]
[WhiteElo "2485"]
[BlackElo "2286"]
[TimeControl "180+1"]
[EndTime "9:17:21 PST"]
[Termination "VomDingJetztHer won on time"]

1. e4 {[%clk 0:03:00.9]} 1... c5 {[%clk 0:02:37.7]} 2. Nc3 {[%clk 0:02:59.3]}
2... a6 {[%clk 0:02:36.7]} 3. d4 {[%clk 0:02:57.4]} 3... cxd4 {[%clk 0:02:36.6]}
4. Qxd4 {[%clk 0:02:58.3]} 4... Nc6 {[%clk 0:02:36.6]} 5. Qe3 {[%clk 0:02:57.3]}
5... g6 {[%clk 0:02:36]} 6. Bc4 {[%clk 0:02:48.3]} 6... Bg7 {[%clk 0:02:26]} 7.
Nge2 {[%clk 0:02:48.2]} 7... d6 {[%clk 0:02:21.9]} 8. O-O {[%clk 0:02:46.4]}
8... Nf6 {[%clk 0:02:22.3]} 9. f3 {[%clk 0:02:46.2]} 9... O-O {[%clk 0:02:20.8]}
10. a4 {[%clk 0:02:44.8]} 10... Nb4 {[%clk 0:02:17.5]} 11. Qd2 {[%clk
0:02:40.9]} 11... e6 {[%clk 0:02:10.7]} 12. Bb3 {[%clk 0:02:28.3]} 12... d5
{[%clk 0:02:08.4]} 13. exd5 {[%clk 0:02:25.2]} 13... exd5 {[%clk 0:01:09.5]} 14.
Nd4 {[%clk 0:02:24.4]} 14... Nc6 {[%clk 0:01:07.9]} 15. Nce2 {[%clk 0:02:23]}
15... Re8 {[%clk 0:01:02]} 16. c3 {[%clk 0:02:21.9]} 16... Ne5 {[%clk
0:00:46.7]} 17. a5 {[%clk 0:02:07.4]} 17... Bd7 {[%clk 0:00:41.6]} 18. Nf4
{[%clk 0:01:57.1]} 18... Nc6 {[%clk 0:00:28.5]} 19. Rd1 {[%clk 0:01:49.2]} 19...
Nxa5 {[%clk 0:00:21.3]} 20. Bxd5 {[%clk 0:01:43.2]} 20... Nxd5 {[%clk
0:00:20.1]} 21. Nxd5 {[%clk 0:01:44.1]} 21... Bxd4+ {[%clk 0:00:14]} 22. Qxd4
{[%clk 0:01:43.8]} 22... Nb3 {[%clk 0:00:14.5]} 23. Nf6+ {[%clk 0:01:42.3]}
23... Kh8 {[%clk 0:00:14.2]} 24. Qxd7 {[%clk 0:01:26.8]} 24... Qxf6 {[%clk
0:00:14]} 25. Ra3 {[%clk 0:01:13.2]} 25... Rad8 {[%clk 0:00:13.4]} 26. Rxb3
{[%clk 0:01:04.6]} 26... Rxd7 {[%clk 0:00:12.2]} 27. Rxd7 {[%clk 0:01:05.5]}
27... Re1+ {[%clk 0:00:10.3]} 28. Kf2 {[%clk 0:01:06.1]} 28... Rxc1 {[%clk
0:00:10.8]} 29. Rbxb7 {[%clk 0:01:04.7]} 29... Qh4+ {[%clk 0:00:10.2]} 30. Ke2
{[%clk 0:01:05]} 30... Qe1+ {[%clk 0:00:09.6]} 31. Kd3 {[%clk 0:01:05.1]} 31...
Rd1+ {[%clk 0:00:10.1]} 32. Kc4 {[%clk 0:01:05.8]} 32... Rxd7 {[%clk 0:00:10]}
33. Rxd7 {[%clk 0:01:06.7]} 33... Qe6+ {[%clk 0:00:10.1]} 34. Rd5 {[%clk
0:01:07.1]} 34... Kg7 {[%clk 0:00:09.8]} 35. Kd4 {[%clk 0:01:07.4]} 35... Qf6+
{[%clk 0:00:09.6]} 36. Ke3 {[%clk 0:01:06.3]} 36... Qe6+ {[%clk 0:00:09.1]} 37.
Kd4 {[%clk 0:01:06.7]} 37... Qb6+ {[%clk 0:00:09.2]} 38. Kd3 {[%clk 0:01:01.1]}
38... Qxb2 {[%clk 0:00:10.1]} 39. c4 {[%clk 0:01:00.4]} 39... Qxg2 {[%clk
0:00:09.8]} 40. c5 {[%clk 0:01:00.9]} 40... Qxf3+ {[%clk 0:00:09.6]} 41. Kc4
{[%clk 0:01:01.8]} 41... Qe2+ {[%clk 0:00:03.9]} 42. Kd4 {[%clk 0:01:01.7]}
42... Qd2+ {[%clk 0:00:01.8]} 43. Ke5 {[%clk 0:01:01.8]} 43... Qc2 {[%clk
0:00:02.3]} 44. Kd6 {[%clk 0:01:02.5]} 44... Qb2 {[%clk 0:00:02.8]} 45. c6
{[%clk 0:01:02.9]} 45... Qb5 {[%clk 0:00:02.6]} 46. c7 {[%clk 0:01:03.1]} 46...
Qb6+ {[%clk 0:00:02.6]} 47. Kd7 {[%clk 0:01:03.2]} 47... Qb5+ {[%clk 0:00:02.4]}
48. Rxb5 {[%clk 0:01:03]} 1-0

[Event "Early-Titled-Tuesday-Blitz-February-06-2024"]
[Site "Chess.com"]
[Date "2024.02.06"]
[Round "7"]
[White "RobertJFischer71"]
[Black "HansOnTwitch"]
[Result "0-1"]
[WhiteElo "2584"]
[BlackElo "3171"]
[TimeControl "180+1"]
[EndTime "9:17:22 PST"]
[Termination "HansOnTwitch won by resignation"]

1. e4 {[%clk 0:03:00.9]} 1... c5 {[%clk 0:02:48.9]} 2. Nf3 {[%clk 0:03:01.3]}
2... d6 {[%clk 0:02:48.2]} 3. d4 {[%clk 0:03:01.9]} 3... cxd4 {[%clk 0:02:47.1]}
4. Nxd4 {[%clk 0:03:02.8]} 4... Nf6 {[%clk 0:02:47.3]} 5. Nc3 {[%clk 0:03:03.3]}
5... a6 {[%clk 0:02:47.8]} 6. h3 {[%clk 0:03:03.6]} 6... b5 {[%clk 0:02:43.9]}
7. g4 {[%clk 0:03:01]} 7... Bb7 {[%clk 0:02:43]} 8. Bg2 {[%clk 0:03:00.7]} 8...
e6 {[%clk 0:02:42.8]} 9. a3 {[%clk 0:02:52.8]} 9... Nbd7 {[%clk 0:02:41.7]} 10.
g5 {[%clk 0:02:49.5]} 10... Ng8 {[%clk 0:02:39.7]} 11. h4 {[%clk 0:02:49.1]}
11... Rc8 {[%clk 0:02:39]} 12. Qe2 {[%clk 0:02:47.4]} 12... Ne7 {[%clk
0:02:31.4]} 13. Bd2 {[%clk 0:02:45.9]} 13... g6 {[%clk 0:02:26.5]} 14. h5 {[%clk
0:02:40]} 14... Bg7 {[%clk 0:02:25.9]} 15. Nb3 {[%clk 0:02:40.4]} 15... Rg8
{[%clk 0:02:18.5]} 16. hxg6 {[%clk 0:02:37.4]} 16... hxg6 {[%clk 0:02:18.2]} 17.
Rh7 {[%clk 0:02:31.6]} 17... Qc7 {[%clk 0:02:18.2]} 18. f4 {[%clk 0:02:16.6]}
18... Nb6 {[%clk 0:02:15.4]} 19. Na5 {[%clk 0:02:10.7]} 19... Ba8 {[%clk
0:02:15]} 20. Bh3 {[%clk 0:02:03.3]} 20... Qc5 {[%clk 0:02:09.1]} 21. O-O-O
{[%clk 0:01:36.6]} 21... Qc7 {[%clk 0:01:47.9]} 22. f5 {[%clk 0:00:56]} 22...
gxf5 {[%clk 0:01:46.1]} 23. exf5 {[%clk 0:00:54.6]} 23... exf5 {[%clk
0:01:46.7]} 24. Bxf5 {[%clk 0:00:47.5]} 24... Rb8 {[%clk 0:01:42.4]} 25. g6
{[%clk 0:00:37.5]} 25... fxg6 {[%clk 0:01:29.1]} 26. Be6 {[%clk 0:00:37.6]}
26... Bxc3 {[%clk 0:01:23.1]} 27. Bxc3 {[%clk 0:00:31.5]} 27... Rf8 {[%clk
0:01:23]} 28. Rf1 {[%clk 0:00:30.9]} 28... Nd7 {[%clk 0:01:16.7]} 29. Bxd7+
{[%clk 0:00:20.4]} 29... Qxd7 {[%clk 0:01:15.9]} 30. Rxf8+ {[%clk 0:00:12.2]}
30... Kxf8 {[%clk 0:01:16.8]} 31. Rh8+ {[%clk 0:00:12.7]} 31... Ng8 {[%clk
0:01:16.4]} 32. Qf2+ {[%clk 0:00:09.4]} 32... Qf7 {[%clk 0:01:10.6]} 33. Qe2
{[%clk 0:00:04.9]} 33... Re8 {[%clk 0:01:09.7]} 34. Qd3 {[%clk 0:00:04.7]} 34...
Bd5 {[%clk 0:01:06]} 35. b3 {[%clk 0:00:04.5]} 35... Qf5 {[%clk 0:01:02.9]} 36.
Qd4 {[%clk 0:00:04]} 36... Re7 {[%clk 0:00:55.5]} 37. Kb2 {[%clk 0:00:04]} 37...
Ke8 {[%clk 0:00:53.9]} 38. Qb6 {[%clk 0:00:03.8]} 38... Kf7 {[%clk 0:00:48.5]}
39. Qc6 {[%clk 0:00:03.5]} 39... Bxc6 {[%clk 0:00:47.3]} 0-1

[Event "Early-Titled-Tuesday-Blitz-February-06-2024"]
[Site "Chess.com"]
[Date "2024.02.06"]
[Round "7"]
[White "Mikhail_Golubev"]
[Black "ilushka"]
[Result "1-0"]
[WhiteElo "2656"]
[BlackElo "2431"]
[TimeControl "180+1"]
[EndTime "9:17:24 PST"]
[Termination "Mikhail_Golubev won on time"]

1. e4 {[%clk 0:03:00.9]} 1... e6 {[%clk 0:02:57.8]} 2. d4 {[%clk 0:03:00.1]}
2... d5 {[%clk 0:02:53.3]} 3. Nc3 {[%clk 0:03:00.6]} 3... Nf6 {[%clk 0:02:53.1]}
4. Bg5 {[%clk 0:02:59.1]} 4... dxe4 {[%clk 0:02:51.6]} 5. Nxe4 {[%clk
0:02:58.7]} 5... Be7 {[%clk 0:02:52.1]} 6. Bxf6 {[%clk 0:02:58.8]} 6... gxf6
{[%clk 0:02:52.8]} 7. Qd3 {[%clk 0:02:59]} 7... f5 {[%clk 0:02:52.8]} 8. Nc3
{[%clk 0:02:58.1]} 8... c5 {[%clk 0:02:52.6]} 9. d5 {[%clk 0:02:55.3]} 9... O-O
{[%clk 0:02:42]} 10. O-O-O {[%clk 0:02:54]} 10... Bf6 {[%clk 0:02:32.6]} 11.
Qg3+ {[%clk 0:02:47.5]} 11... Kh8 {[%clk 0:02:26.3]} 12. dxe6 {[%clk 0:02:45]}
12... Qa5 {[%clk 0:02:11]} 13. e7 {[%clk 0:02:22.4]} 13... Re8 {[%clk
0:02:06.1]} 14. Nd5 {[%clk 0:02:21.9]} 14... Bg7 {[%clk 0:01:55.2]} 15. Nc7
{[%clk 0:02:21.5]} 15... Qxa2 {[%clk 0:01:54.9]} 16. Qxg7+ {[%clk 0:02:20.5]}
16... Kxg7 {[%clk 0:01:47.5]} 17. Nxe8+ {[%clk 0:02:21.2]} 17... Kg6 {[%clk
0:01:37.6]} 18. Rd6+ {[%clk 0:02:16]} 18... Be6 {[%clk 0:01:32.6]} 19. Nc7
{[%clk 0:02:04.2]} 19... Qa1+ {[%clk 0:01:24.5]} 20. Kd2 {[%clk 0:02:03.8]}
20... Qa5+ {[%clk 0:01:24.1]} 21. c3 {[%clk 0:02:01.2]} 21... Nc6 {[%clk
0:00:57]} 22. Nxa8 {[%clk 0:01:58.8]} 22... Nxe7 {[%clk 0:00:57.4]} 23. Nh3
{[%clk 0:01:52.2]} 23... Qa2 {[%clk 0:00:47.2]} 24. Nf4+ {[%clk 0:01:45.9]}
24... Kf6 {[%clk 0:00:47.2]} 25. Nxe6 {[%clk 0:01:30.4]} 25... Qxb2+ {[%clk
0:00:36.3]} 26. Kd1 {[%clk 0:01:29.5]} 26... fxe6 {[%clk 0:00:36.9]} 27. Bc4
{[%clk 0:01:28]} 27... Qb1+ {[%clk 0:00:06.7]} 28. Kd2 {[%clk 0:01:21]} 28...
Qxh1 {[%clk 0:00:07.6]} 29. Rxe6+ {[%clk 0:01:21]} 29... Kg5 {[%clk 0:00:08]}
30. Rxe7 {[%clk 0:01:20]} 30... Qxh2 {[%clk 0:00:08.2]} 31. Re3 {[%clk
0:01:11.4]} 31... f4 {[%clk 0:00:05.1]} 32. Re5+ {[%clk 0:01:10.3]} 32... Kf6
{[%clk 0:00:05.2]} 33. Re6+ {[%clk 0:01:10.2]} 33... Kg7 {[%clk 0:00:05.5]} 34.
Re7+ {[%clk 0:01:09.3]} 34... Kf6 {[%clk 0:00:05]} 35. Rf7+ {[%clk 0:01:08.5]}
35... Kg6 {[%clk 0:00:05.1]} 36. Nc7 {[%clk 0:01:07.3]} 36... Qxg2 {[%clk
0:00:03.8]} 37. Rxf4 {[%clk 0:00:58]} 37... Qg5 {[%clk 0:00:04.4]} 38. Ne6
{[%clk 0:00:57]} 38... Qe5 {[%clk 0:00:03.5]} 39. Bd3+ {[%clk 0:00:54.3]} 39...
Kh5 {[%clk 0:00:02.4]} 40. Rf5+ {[%clk 0:00:54.3]} 40... Qxf5 {[%clk 0:00:02]}
41. Bxf5 {[%clk 0:00:55.2]} 41... Kh4 {[%clk 0:00:01.3]} 42. Bxh7 {[%clk
0:00:54.4]} 1-0

[Event "Early-Titled-Tuesday-Blitz-February-06-2024"]
[Site "Chess.com"]
[Date "2024.02.06"]
[Round "7"]
[White "IriBu"]
[Black "Bkmzzzzz"]
[Result "1-0"]
[WhiteElo "2538"]
[BlackElo "2384"]
[TimeControl "180+1"]
[EndTime "9:17:29 PST"]
[Termination "IriBu won by resignation"]

1. d4 {[%clk 0:03:00.9]} 1... d5 {[%clk 0:02:59.8]} 2. Nf3 {[%clk 0:03:01]} 2...
e6 {[%clk 0:02:58.5]} 3. c4 {[%clk 0:02:59.5]} 3... dxc4 {[%clk 0:02:59.4]} 4.
e3 {[%clk 0:02:59.3]} 4... Nf6 {[%clk 0:02:59.5]} 5. Bxc4 {[%clk 0:02:58.8]}
5... c5 {[%clk 0:03:00.2]} 6. O-O {[%clk 0:02:58.2]} 6... a6 {[%clk 0:03:00.6]}
7. a4 {[%clk 0:02:56.8]} 7... Nc6 {[%clk 0:02:59.3]} 8. Nc3 {[%clk 0:02:56.8]}
8... Be7 {[%clk 0:02:59.1]} 9. b3 {[%clk 0:02:48.3]} 9... O-O {[%clk 0:02:54]}
10. Bb2 {[%clk 0:02:48.2]} 10... cxd4 {[%clk 0:02:53.5]} 11. exd4 {[%clk
0:02:44.1]} 11... Nb4 {[%clk 0:02:53.4]} 12. Ne5 {[%clk 0:02:28.8]} 12... b6
{[%clk 0:02:49.6]} 13. Qf3 {[%clk 0:02:26.4]} 13... Rb8 {[%clk 0:02:47.1]} 14.
Ne4 {[%clk 0:02:22.9]} 14... Bb7 {[%clk 0:02:42.6]} 15. Nxf6+ {[%clk 0:02:22.8]}
15... Bxf6 {[%clk 0:02:43.5]} 16. Qh3 {[%clk 0:02:20.6]} 16... a5 {[%clk
0:02:23.1]} 17. Rad1 {[%clk 0:02:11.6]} 17... Bd5 {[%clk 0:02:17.9]} 18. Bc3
{[%clk 0:02:09]} 18... Qd6 {[%clk 0:02:09]} 19. Ng4 {[%clk 0:02:06.5]} 19... Be7
{[%clk 0:02:02]} 20. Bxb4 {[%clk 0:01:58.3]} 20... Qxb4 {[%clk 0:01:29.6]} 21.
Bxd5 {[%clk 0:01:57.5]} 21... exd5 {[%clk 0:01:30.5]} 22. Ne5 {[%clk 0:01:56.6]}
22... Rbc8 {[%clk 0:01:26.4]} 23. Qd7 {[%clk 0:01:39.2]} 23... Rfd8 {[%clk
0:00:32.5]} 24. Qb7 {[%clk 0:01:38]} 24... Qd6 {[%clk 0:00:25.7]} 25. Rc1 {[%clk
0:01:33.7]} 25... Rb8 {[%clk 0:00:22.5]} 26. Qa6 {[%clk 0:01:28.5]} 26... Bf8
{[%clk 0:00:19.9]} 27. Rc6 {[%clk 0:01:26]} 27... Qb4 {[%clk 0:00:18.8]} 28. Qd3
{[%clk 0:01:25]} 28... Re8 {[%clk 0:00:18]} 29. h4 {[%clk 0:01:16.7]} 29... f6
{[%clk 0:00:18.1]} 30. Nf3 {[%clk 0:01:15.1]} 30... Re4 {[%clk 0:00:16.9]} 31.
Rfc1 {[%clk 0:01:12.1]} 31... Rbe8 {[%clk 0:00:17.3]} 32. Rc8 {[%clk 0:01:11]}
32... Bd6 {[%clk 0:00:13.8]} 33. Rxe8+ {[%clk 0:01:08]} 33... Rxe8 {[%clk
0:00:14.7]} 34. Qb5 {[%clk 0:01:05.2]} 34... Qa3 {[%clk 0:00:14]} 35. Rc6 {[%clk
0:01:02.7]} 35... Qa1+ {[%clk 0:00:11.1]} 36. Qf1 {[%clk 0:01:02.7]} 36... Qxf1+
{[%clk 0:00:11.5]} 37. Kxf1 {[%clk 0:01:03.6]} 37... Bb4 {[%clk 0:00:09.6]} 38.
g3 {[%clk 0:00:58.9]} 38... Re4 {[%clk 0:00:07.9]} 39. Rxb6 {[%clk 0:00:57.6]}
39... g5 {[%clk 0:00:06.5]} 40. hxg5 {[%clk 0:00:56]} 40... fxg5 {[%clk
0:00:07.4]} 41. Nxg5 {[%clk 0:00:41.8]} 41... Rxd4 {[%clk 0:00:08]} 42. Rb8+
{[%clk 0:00:42]} 42... Kg7 {[%clk 0:00:08.3]} 43. Ne6+ {[%clk 0:00:42.2]} 1-0

[Event "Early-Titled-Tuesday-Blitz-February-06-2024"]
[Site "Chess.com"]
[Date "2024.02.06"]
[Round "7"]
[White "Harsha_Bharathakoti"]
[Black "Akewjon"]
[Result "1-0"]
[WhiteElo "2939"]
[BlackElo "2773"]
[TimeControl "180+1"]
[EndTime "9:17:31 PST"]
[Termination "Harsha_Bharathakoti won on time"]

1. Nf3 {[%clk 0:02:55.4]} 1... Nf6 {[%clk 0:02:59.9]} 2. c4 {[%clk 0:02:54.8]}
2... e6 {[%clk 0:03:00.1]} 3. Nc3 {[%clk 0:02:54.8]} 3... d5 {[%clk 0:03:00.5]}
4. e3 {[%clk 0:02:55.2]} 4... Bd6 {[%clk 0:03:00.8]} 5. b3 {[%clk 0:02:55.4]}
5... O-O {[%clk 0:03:00.4]} 6. Bb2 {[%clk 0:02:55.6]} 6... Nc6 {[%clk
0:03:01.1]} 7. cxd5 {[%clk 0:02:43.1]} 7... exd5 {[%clk 0:02:57.5]} 8. Ne2
{[%clk 0:02:43.2]} 8... Re8 {[%clk 0:02:43]} 9. a3 {[%clk 0:02:30.7]} 9... Bg4
{[%clk 0:02:40.8]} 10. Ng3 {[%clk 0:01:53.5]} 10... d4 {[%clk 0:02:30.4]} 11.
Bb5 {[%clk 0:01:52.9]} 11... dxe3 {[%clk 0:01:35]} 12. dxe3 {[%clk 0:01:53.8]}
12... h5 {[%clk 0:01:35.7]} 13. Qc2 {[%clk 0:01:35.8]} 13... h4 {[%clk
0:01:15.1]} 14. Nxh4 {[%clk 0:01:24.2]} 14... Be5 {[%clk 0:00:21.6]} 15. O-O
{[%clk 0:01:08.2]} 15... Bxb2 {[%clk 0:00:18.5]} 16. Qxb2 {[%clk 0:01:09.1]}
16... Qd5 {[%clk 0:00:18.7]} 17. Be2 {[%clk 0:00:57]} 17... Qg5 {[%clk
0:00:16.7]} 18. Nf3 {[%clk 0:00:55.4]} 18... Bxf3 {[%clk 0:00:13.4]} 19. Bxf3
{[%clk 0:00:56.3]} 19... Ne5 {[%clk 0:00:14.3]} 20. Bxb7 {[%clk 0:00:51.5]}
20... Rab8 {[%clk 0:00:14.5]} 21. f4 {[%clk 0:00:52.3]} 21... Qh4 {[%clk
0:00:08.6]} 22. Nf5 {[%clk 0:00:51.4]} 22... Qh5 {[%clk 0:00:07.3]} 23. fxe5
{[%clk 0:00:51.3]} 23... Ng4 {[%clk 0:00:07.9]} 24. h3 {[%clk 0:00:52.1]} 24...
Nxe5 {[%clk 0:00:03.7]} 25. Be4 {[%clk 0:00:43.3]} 25... g6 {[%clk 0:00:01.8]}
26. Nd4 {[%clk 0:00:27.7]} 26... Qg5 {[%clk 0:00:02.4]} 27. Rae1 {[%clk
0:00:24.8]} 27... c5 {[%clk 0:00:02.9]} 28. Nc6 {[%clk 0:00:23.3]} 28... Nc4
{[%clk 0:00:02.4]} 29. Qf2 {[%clk 0:00:21.2]} 1-0

[Event "Early-Titled-Tuesday-Blitz-February-06-2024"]
[Site "Chess.com"]
[Date "2024.02.06"]
[Round "7"]
[White "AA95"]
[Black "erugee"]
[Result "1-0"]
[WhiteElo "2506"]
[BlackElo "2334"]
[TimeControl "180+1"]
[EndTime "9:17:34 PST"]
[Termination "AA95 won on time"]

1. Nf3 {[%clk 0:02:57.5]} 1... e6 {[%clk 0:03:00]} 2. d4 {[%clk 0:02:56.9]} 2...
d5 {[%clk 0:03:00.3]} 3. c4 {[%clk 0:02:56.8]} 3... f5 {[%clk 0:03:00.6]} 4. h3
{[%clk 0:02:53.9]} 4... c6 {[%clk 0:03:01.3]} 5. g4 {[%clk 0:02:54.1]} 5... Nf6
{[%clk 0:02:58.1]} 6. Nc3 {[%clk 0:02:52.3]} 6... Bb4 {[%clk 0:02:55.9]} 7. g5
{[%clk 0:02:51.9]} 7... Bxc3+ {[%clk 0:02:56]} 8. bxc3 {[%clk 0:02:51.2]} 8...
Ne4 {[%clk 0:02:56.7]} 9. Qc2 {[%clk 0:02:23.7]} 9... Qa5 {[%clk 0:02:54.4]} 10.
Bd2 {[%clk 0:02:12.6]} 10... O-O {[%clk 0:02:51.2]} 11. e3 {[%clk 0:01:55.7]}
11... Nd7 {[%clk 0:02:49.1]} 12. Bd3 {[%clk 0:01:54.3]} 12... Nxd2 {[%clk
0:02:49.3]} 13. Kxd2 {[%clk 0:01:53.7]} 13... dxc4 {[%clk 0:02:46.5]} 14. Bxc4
{[%clk 0:01:53.7]} 14... Nb6 {[%clk 0:02:46.8]} 15. Bb3 {[%clk 0:01:46.4]} 15...
Nd5 {[%clk 0:02:41.5]} 16. Ne5 {[%clk 0:01:38.3]} 16... Qd8 {[%clk 0:01:49.8]}
17. f4 {[%clk 0:01:22.3]} 17... c5 {[%clk 0:01:49.6]} 18. h4 {[%clk 0:00:54.9]}
18... a5 {[%clk 0:01:46.8]} 19. a4 {[%clk 0:00:52.6]} 19... b6 {[%clk
0:01:44.8]} 20. Ke2 {[%clk 0:00:45.8]} 20... Ba6+ {[%clk 0:01:43.1]} 21. Kf2
{[%clk 0:00:45.9]} 21... cxd4 {[%clk 0:01:39.5]} 22. cxd4 {[%clk 0:00:38.2]}
22... Rc8 {[%clk 0:01:38.2]} 23. Qd2 {[%clk 0:00:31.4]} 23... Qd6 {[%clk
0:01:23.4]} 24. Rhc1 {[%clk 0:00:27.5]} 24... Rfd8 {[%clk 0:00:51.3]} 25. Rxc8
{[%clk 0:00:19.5]} 25... Rxc8 {[%clk 0:00:51.2]} 26. Rc1 {[%clk 0:00:19.8]}
26... Rxc1 {[%clk 0:00:51.1]} 27. Qxc1 {[%clk 0:00:20.7]} 27... h5 {[%clk
0:00:36.9]} 28. Bxd5 {[%clk 0:00:18.4]} 28... Qxd5 {[%clk 0:00:35]} 29. Qc7
{[%clk 0:00:17.6]} 29... Bb7 {[%clk 0:00:15.1]} 30. Qb8+ {[%clk 0:00:16.9]} 1-0